[Event "Turkish Championship 2023"]
[Site "Kemer Antalya"]
[Date "2023.12.09"]
[Round "8"]
[White "Eren, Ataberk"]
[Black "Isik, Alparslan"]
[Result "1/2-1/2"]
[ECO "D36"]
[WhiteElo "2429"]
[BlackElo "2452"]
[Annotator "RC"]
[PlyCount "89"]
[EventDate "2023.12.01"]
[EventType "tourn"]
[EventCountry "TUR"]
[SourceTitle "playchess.com"]
[Source "ChessBase"]
[SourceQuality "1"]
[TimeControl "40/5400+30:1800+30"]

1. d4 {[%emt 0:01:00]} d5 {[%emt 0:01:00]} 2. c4 {[%emt 0:00:30]} e6 {[%emt 0:00:00]} 3. Nc3 {[%emt 0:00:30]} Nf6 {[%emt 0:00:00]} 4. cxd5 {[%emt 0:00:30]} exd5 {[%emt 0:00:30]} 5. Bg5 {[%emt 0:00:00]} Be7 {[%emt 0:02:30]} 6. e3 {[%emt 0:00:00]} O-O {[%emt 0:00:00]} 7. Bd3 {[%emt 0:00:30]} Re8 {[%emt 0:01:00]} 8. Nf3 {[%emt 0:02:30]} h6 {[%emt 0:00:30]} 9. Bh4 {[%emt 0:00:30]} c6 {[%emt 0:00:00]} 10. Qc2 {[%emt 0:00:30]} Ne4 {[%emt 0:02:00]} 11. Bxe7 {[%emt 0:12:30]} Qxe7 {[%emt 0:00:00]} 12. Bxe4 {[%emt 0:01:30]} dxe4 {[%emt 0:00:00]} 13. Nd2 {[%emt 0:00:30]} f5 {[%emt 0:02:30]} 14. O-O {[%emt 0:01:30]} Nd7 {[%emt 0:05:30]} 15. Rae1 {[%emt 0:21:30]} Nf6 {[%emt 0:03:30]} 16. f3 {[%emt 0:03:30]} exf3 {[%emt 0:04:30]} 17. Nxf3 {[%emt 0:03:30]} c5 {[%emt 0:25:30]} 18. a3 {[%emt 0:13:30]} Be6 {[%emt 0:06:30]} 19. h3 {[%emt 0:05:30]} Rac8 {[%emt 0:02:30]} 20. Qa4 {[%emt 0:15:14]} a6 {[%emt 0:01:30]} 21. Nh4 {[%emt 0:03:43]} Qd6 {[%emt 0:04:30]} 22. dxc5 {[%emt 0:03:18]} Qxc5 {[%emt 0:07:30]} 23. Qd4 {[%emt 0:02:50]} Qa5 {[%emt 0:00:30]} 24. Nf3 {[%emt 0:06:52]} Rcd8 {[%emt 0:01:30]} 25. Qf4 {[%emt 0:00:10]} Qb6 {[%emt 0:00:30]} 26. Rf2 {[%emt 0:00:25]} g5 {[%emt 0:01:30]} 27. Qb4 {[%emt 0:00:29]} Qxb4 {[%emt 0:00:30]} 28. axb4 {[%emt 0:00:01]} Bc4 {[%emt 0:01:30]} 29. Rd2 {[%emt 0:00:54]} Rxd2 {[%emt 0:02:30]} 30. Nxd2 {[%emt 0:00:02]} Bd5 {[%emt 0:07:17]} 31. Rf1 {[%emt 0:01:11]} Re5 {[%emt 0:00:04]} 32. g4 {[%emt 0:00:38]} Be6 {[%emt 0:00:06]} 33. e4 {[%emt 0:00:29]} Bd7 {[%emt 0:05:55]} 34. Nf3 {[%emt 0:00:39]} Re8 {[%emt 0:01:29]} 35. exf5 {[%emt 0:00:10]} Bc6 {[%emt 0:01:27]} 36. Nd4 {[%emt 0:00:30]} Re3 {[%emt 0:00:00]} 37. Nxc6 {[%emt 0:00:07]} bxc6 {[%emt 0:00:00]} 38. Kg2 {[%emt 0:00:16]} h5 {[%emt 0:00:00]} 39. Rf3 {[%emt 0:00:14]} Re1 {[%emt 0:00:45]} 40. Rd3 {[%emt 0:00:00]} hxg4 {[%emt 0:00:00]} 41. hxg4 {[%emt 0:09:48]} Nxg4 {[%emt 0:02:57]} 42. Rg3 {[%emt 0:00:00]} Ne5 {[%emt 0:01:30]} 43. Kf2 {[%emt 0:02:00]} Rh1 {[%emt 0:02:30]} 44. Rxg5+ {[%emt 0:00:30]} Kf7 {[%emt 0:00:30]} 45. Ne4 {[%emt 0:05:01]} 1/2-1/2

[Event "Turkish Championship 2023"]
[Site "Kemer Antalya"]
[Date "2023.12.09"]
[Round "8"]
[White "Bicer, Atakan Mert"]
[Black "Metin, Enis"]
[Result "0-1"]
[ECO "D44"]
[WhiteElo "2318"]
[BlackElo "2031"]
[Annotator "ChessBase"]
[PlyCount "102"]
[EventDate "2023.12.01"]
[EventType "tourn"]
[EventCountry "TUR"]
[SourceTitle "playchess.com"]
[Source "ChessBase"]
[SourceQuality "1"]
[TimeControl "40/5400+30:1800+30"]

1. d4 {[%emt 0:01:00]} d5 {[%emt 0:01:00]} 2. c4 {[%emt 0:00:00]} dxc4 {[%emt 0:00:00]} 3. Nf3 {[%emt 0:00:00]} Nf6 {[%emt 0:01:00]} 4. Nc3 {[%emt 0:00:30]} e6 {[%emt 0:00:30]} 5. Bg5 {[%emt 0:00:30]} c6 {[%emt 0:02:30]} 6. a4 {[%emt 0:19:30]} Bb4 {[%emt 0:01:30]} 7. Qc2 {[%emt 0:00:30]} b5 {[%emt 0:02:30]} 8. e4 {[%emt 0:00:30]} h6 {[%emt 0:06:30]} 9. Bh4 {[%emt 0:04:30]} Nbd7 {[%emt 0:16:30]} 10. Be2 {[%emt 0:05:30]} Qb6 {[%emt 0:03:30]} 11. O-O {[%emt 0:03:30]} Bb7 {[%emt 0:02:30]} 12. b3 {[%emt 0:11:30]} g5 {[%emt 0:14:30]} 13. Bg3 {[%emt 0:08:30]} Bxc3 {[%emt 0:00:30]} 14. Qxc3 {[%emt 0:00:30]} Nxe4 {[%emt 0:00:30]} 15. Qe3 {[%emt 0:00:30]} Nxg3 {[%emt 0:00:30]} 16. fxg3 {[%emt 0:00:00]} cxb3 {[%emt 0:02:30]} 17. a5 {[%emt 0:03:00]} Qd8 {[%emt 0:01:30]} 18. a6 {[%emt 0:18:30]} b2 {[%emt 0:00:30]} 19. Ra2 {[%emt 0:00:30]} Bc8 {[%emt 0:01:30]} 20. h4 {[%emt 0:02:14]} Qb6 {[%emt 0:01:30]} 21. Ne5 {[%emt 0:02:15]} Nxe5 {[%emt 0:06:30]} 22. Qxe5 {[%emt 0:00:30]} Rf8 {[%emt 0:00:00]} 23. Bf3 {[%emt 0:03:14]} Bxa6 {[%emt 0:02:00]} 24. Rxb2 {[%emt 0:04:27]} O-O-O {[%emt 0:01:30]} 25. Rc1 {[%emt 0:00:14]} Bb7 {[%emt 0:00:00]} 26. Rc5 {[%emt 0:04:16]} Qc7 {[%emt 0:06:00]} 27. Rbxb5 {[%emt 0:02:02]} Qxe5 {[%emt 0:00:30]} 28. dxe5 {[%emt 0:00:00]} Kc7 {[%emt 0:03:30]} 29. Rb4 {[%emt 0:00:00]} Rc8 {[%emt 0:01:30]} 30. Rc3 {[%emt 0:00:19]} a5 {[%emt 0:02:30]} 31. Rbc4 {[%emt 0:01:01]} Rfd8 {[%emt 0:02:38]} 32. Kh2 {[%emt 0:00:06]} Kd7 {[%emt 0:06:09]} 33. Rb3 {[%emt 0:00:52]} Rc7 {[%emt 0:01:17]} 34. Kh3 {[%emt 0:01:01]} Ra8 {[%emt 0:01:51]} 35. Ra4 {[%emt 0:01:28]} Ra7 {[%emt 0:00:35]} 36. Kg4 {[%emt 0:00:59]} c5 {[%emt 0:00:20]} 37. Kh5 {[%emt 0:00:51]} Bd5 {[%emt 0:01:12]} 38. Rba3 {[%emt 0:01:04]} c4 {[%emt 0:00:16]} 39. Rxa5 {[%emt 0:00:37]} Rxa5 {[%emt 0:00:32]} 40. Rxa5 {[%emt 0:00:00]} c3 {[%emt 0:00:00]} 41. Ra1 {[%emt 0:01:30]} c2 {[%emt 0:02:40]} 42. Rc1 {[%emt 0:00:30]} Rc4 {[%emt 0:03:30]} 43. Be2 {[%emt 0:06:30]} Rc3 {[%emt 0:00:30]} 44. Kxh6 {[%emt 0:00:30]} gxh4 {[%emt 0:06:30]} 45. gxh4 {[%emt 0:01:30]} Bxg2 {[%emt 0:00:30]} 46. Kg5 {[%emt 0:00:30]} Be4 {[%emt 0:00:30]} 47. Bb5+ {[%emt 0:05:30]} Ke7 {[%emt 0:02:30]} 48. Kf4 {[%emt 0:01:44]} Bf5 {[%emt 0:00:30]} 49. Kg5 {[%emt 0:00:18]} Rg3+ {[%emt 0:01:30]} 50. Kh5 {[%emt 0:00:29]} Kf8 {[%emt 0:00:30]} 51. Kh6 {[%emt 0:00:49]} Rg6+ {[%emt 0:00:30]} 0-1

[Event "Turkish Championship 2023"]
[Site "Kemer Antalya"]
[Date "2023.12.09"]
[Round "8"]
[White "Taspinar, Yanki"]
[Black "Tarhan, Adar"]
[Result "0-1"]
[ECO "B80"]
[WhiteElo "2318"]
[BlackElo "2434"]
[Annotator "RC"]
[PlyCount "134"]
[EventDate "2023.12.01"]
[EventType "tourn"]
[EventCountry "TUR"]
[SourceTitle "playchess.com"]
[Source "ChessBase"]
[SourceQuality "1"]
[TimeControl "40/5400+30:1800+30"]

1. e4 {[%emt 0:04:00]} c5 {[%emt 0:01:00]} 2. Nf3 {[%emt 0:00:00]} e6 {[%emt 0:00:30]} 3. d4 {[%emt 0:00:00]} cxd4 {[%emt 0:00:30]} 4. Nxd4 {[%emt 0:00:30]} Nc6 {[%emt 0:00:00]} 5. Nc3 {[%emt 0:00:30]} Qc7 {[%emt 0:00:00]} 6. Be3 {[%emt 0:00:30]} a6 {[%emt 0:00:30]} 7. g4 {[%emt 0:00:30]} b5 {[%emt 0:04:30]} 8. Nxc6 {[%emt 0:00:30]} Qxc6 {[%emt 0:00:30]} 9. Qd2 {[%emt 0:00:00]} Nf6 {[%emt 0:02:30]} 10. f3 {[%emt 0:03:00]} d6 {[%emt 0:03:30]} 11. O-O-O {[%emt 0:08:30]} Be7 {[%emt 0:02:30]} 12. Kb1 {[%emt 0:10:30]} Bb7 {[%emt 0:04:30]} 13. a3 {[%emt 0:19:30]} Rc8 {[%emt 0:04:30]} 14. h4 {[%emt 0:03:30]} Nd7 {[%emt 0:01:30]} 15. g5 {[%emt 0:06:30]} Ne5 {[%emt 0:03:30]} 16. Rh3 {[%emt 0:01:30]} Nc4 {[%emt 0:06:30]} 17. Bxc4 {[%emt 0:01:30]} Qxc4 {[%emt 0:00:30]} 18. Bd4 {[%emt 0:11:30]} Rg8 {[%emt 0:04:30]} 19. Na2 {[%emt 0:09:02]} d5 {[%emt 0:02:30]} 20. f4 {[%emt 0:07:04]} dxe4 {[%emt 0:02:30]} 21. Rc3 {[%emt 0:00:45]} Qd5 {[%emt 0:00:00]} 22. Rxc8+ {[%emt 0:00:25]} Bxc8 {[%emt 0:00:00]} 23. Nc3 {[%emt 0:01:30]} Qc6 {[%emt 0:00:30]} 24. Re1 {[%emt 0:03:56]} f5 {[%emt 0:01:30]} 25. gxf6 {[%emt 0:00:32]} gxf6 {[%emt 0:00:00]} 26. Nxe4 {[%emt 0:01:27]} Kf7 {[%emt 0:00:00]} 27. Qe3 {[%emt 0:05:44]} Rg2 {[%emt 0:01:30]} 28. Bc3 {[%emt 0:00:31]} Qd5 {[%emt 0:04:30]} 29. f5 {[%emt 0:00:44]} Rg4 {[%emt 0:07:30]} 30. fxe6+ {[%emt 0:00:45]} Bxe6 {[%emt 0:00:00]} 31. b3 {[%emt 0:00:18]} Rxh4 {[%emt 0:01:00]} 32. Bb2 {[%emt 0:00:45]} Rxe4 {[%emt 0:04:30]} 33. Qxe4 {[%emt 0:00:30]} Qxe4 {[%emt 0:00:30]} 34. Rxe4 {[%emt 0:00:00]} h5 {[%emt 0:00:00]} 35. a4 {[%emt 0:00:59]} f5 {[%emt 0:01:00]} 36. Rf4 {[%emt 0:00:25]} Bd6 {[%emt 0:01:30]} 37. Rf3 {[%emt 0:00:34]} h4 {[%emt 0:01:30]} 38. axb5 {[%emt 0:00:47]} axb5 {[%emt 0:00:00]} 39. Bc1 {[%emt 0:00:09]} Kg6 {[%emt 0:00:00]} 40. Re3 {[%emt 0:00:00]} Bf7 {[%emt 0:00:00]} 41. c4 {[%emt 0:10:38]} bxc4 {[%emt 0:01:00]} 42. bxc4 {[%emt 0:00:30]} Bxc4 {[%emt 0:02:30]} 43. Kc2 {[%emt 0:08:02]} Kh5 {[%emt 0:03:30]} 44. Rc3 {[%emt 0:03:57]} Bd5 {[%emt 0:00:30]} 45. Kd1 {[%emt 0:03:55]} Kg4 {[%emt 0:00:30]} 46. Rd3 {[%emt 0:03:21]} h3 {[%emt 0:06:30]} 47. Rxd5 {[%emt 0:02:00]} h2 {[%emt 0:00:30]} 48. Rxd6 {[%emt 0:00:16]} h1=Q+ {[%emt 0:00:00]} 49. Kc2 {[%emt 0:00:00]} Qh2+ {[%emt 0:01:00]} 50. Rd2 {[%emt 0:00:00]} Qe5 {[%emt 0:00:30]} 51. Rd3 {[%emt 0:00:22]} f4 {[%emt 0:00:30]} 52. Bxf4 {[%emt 0:00:03]} Kxf4 {[%emt 0:00:00]} 53. Rd2 {[%emt 0:02:04]} Qc5+ {[%emt 0:00:00]} 54. Kd3 {[%emt 0:00:56]} Qa3+ {[%emt 0:01:30]} 55. Kc4 {[%emt 0:00:49]} Qa4+ {[%emt 0:00:30]} 56. Kc3 {[%emt 0:00:12]} Ke3 {[%emt 0:01:30]} 57. Rd3+ {[%emt 0:00:30]} Ke4 {[%emt 0:00:00]} 58. Rd2 {[%emt 0:00:35]} Qa3+ {[%emt 0:00:00]} 59. Kc2 {[%emt 0:00:17]} Ke3 {[%emt 0:00:00]} 60. Kb1 {[%emt 0:01:01]} Qb3+ {[%emt 0:00:00]} 61. Ka1 {[%emt 0:00:09]} Qa4+ {[%emt 0:01:30]} 62. Ra2 {[%emt 0:00:35]} Qd1+ {[%emt 0:00:30]} 63. Kb2 {[%emt 0:00:00]} Kd2 {[%emt 0:00:00]} 64. Ra5 {[%emt 0:00:34]} Qc2+ {[%emt 0:00:00]} 65. Ka3 {[%emt 0:00:38]} Qc3+ {[%emt 0:00:30]} 66. Ka4 {[%emt 0:00:30]} Qc4+ {[%emt 0:00:00]} 67. Ka3 {[%emt 0:00:00]} Kc3 {[%emt 0:00:00]} 0-1

[Event "Turkish Championship 2023"]
[Site "Kemer Antalya"]
[Date "2023.12.09"]
[Round "8"]
[White "Tirpan, Ceren"]
[Black "Tuncer, Ufuk"]
[Result "1/2-1/2"]
[ECO "B92"]
[WhiteElo "1940"]
[BlackElo "2360"]
[Annotator "ChessBase"]
[PlyCount "163"]
[EventDate "2023.12.01"]
[EventType "tourn"]
[EventCountry "TUR"]
[SourceTitle "playchess.com"]
[Source "ChessBase"]
[SourceQuality "1"]
[TimeControl "40/5400+30:1800+30"]

1. e4 {[%emt 0:01:00]} c5 {[%emt 0:01:00]} 2. Nc3 {[%emt 0:00:00]} a6 {[%emt 0:00:30]} 3. Nf3 {[%emt 0:00:00]} d6 {[%emt 0:00:30]} 4. d4 {[%emt 0:01:30]} cxd4 {[%emt 0:00:00]} 5. Nxd4 {[%emt 0:01:30]} Nf6 {[%emt 0:00:00]} 6. Be2 {[%emt 0:00:00]} e5 {[%emt 0:00:30]} 7. Nb3 {[%emt 0:00:00]} Be7 {[%emt 0:00:00]} 8. Be3 {[%emt 0:00:30]} Be6 {[%emt 0:00:00]} 9. O-O {[%emt 0:01:30]} Nbd7 {[%emt 0:00:30]} 10. f3 {[%emt 0:04:30]} Rc8 {[%emt 0:00:30]} 11. Qd2 {[%emt 0:02:30]} O-O {[%emt 0:00:30]} 12. a4 {[%emt 0:05:30]} Qc7 {[%emt 0:08:30]} 13. Rfd1 {[%emt 0:04:30]} Rfd8 {[%emt 0:01:30]} 14. a5 {[%emt 0:07:30]} h6 {[%emt 0:08:30]} 15. Bf1 {[%emt 0:03:30]} Qc6 {[%emt 0:03:30]} 16. Rac1 {[%emt 0:15:30]} Nc5 {[%emt 0:24:30]} 17. Nxc5 {[%emt 0:06:30]} dxc5 {[%emt 0:00:00]} 18. Qe1 {[%emt 0:00:30]} c4 {[%emt 0:10:00]} 19. Rxd8+ {[%emt 0:18:30]} Rxd8 {[%emt 0:00:00]} 20. Ra1 {[%emt 0:00:30]} Kf8 {[%emt 0:06:00]} 21. Na4 {[%emt 0:09:00]} Nd7 {[%emt 0:05:30]} 22. h3 {[%emt 0:04:57]} Rc8 {[%emt 0:08:30]} 23. Nc3 {[%emt 0:01:19]} Bc5 {[%emt 0:03:17]} 24. Qf2 {[%emt 0:01:55]} Bb4 {[%emt 0:03:01]} 25. Bd2 {[%emt 0:04:11]} Ke8 {[%emt 0:03:54]} 26. Qg3 {[%emt 0:01:18]} g5 {[%emt 0:02:04]} 27. h4 {[%emt 0:00:55]} f6 {[%emt 0:00:35]} 28. Qf2 {[%emt 0:00:04]} Kf7 {[%emt 0:01:08]} 29. Na4 {[%emt 0:01:35]} Be7 {[%emt 0:01:51]} 30. Nc3 {[%emt 0:01:00]} Bc5 {[%emt 0:02:16]} 31. Be3 {[%emt 0:00:06]} Bxe3 {[%emt 0:00:21]} 32. Qxe3 {[%emt 0:00:05]} Qc5 {[%emt 0:01:17]} 33. Qxc5 {[%emt 0:00:34]} Rxc5 {[%emt 0:00:30]} 34. hxg5 {[%emt 0:00:30]} hxg5 {[%emt 0:00:30]} 35. Kf2 {[%emt 0:00:00]} Nb8 {[%emt 0:00:00]} 36. Nd5 {[%emt 0:03:01]} Bxd5 {[%emt 0:03:20]} 37. exd5 {[%emt 0:00:08]} Ke7 {[%emt 0:00:12]} 38. Ra4 {[%emt 0:00:10]} Rxd5 {[%emt 0:02:23]} 39. Rxc4 {[%emt 0:00:09]} Nc6 {[%emt 0:01:05]} 40. b4 {[%emt 0:00:00]} Kd6 {[%emt 0:00:00]} 41. Ke1 {[%emt 0:06:33]} Kd7 {[%emt 0:10:46]} 42. c3 {[%emt 0:06:30]} Ne7 {[%emt 0:02:30]} 43. Re4 {[%emt 0:04:26]} Rd6 {[%emt 0:00:54]} 44. c4 {[%emt 0:06:50]} Nc6 {[%emt 0:03:57]} 45. b5 {[%emt 0:03:31]} axb5 {[%emt 0:00:31]} 46. a6 {[%emt 0:02:25]} bxa6 {[%emt 0:01:24]} 47. cxb5 {[%emt 0:00:06]} axb5 {[%emt 0:00:13]} 48. Bxb5 {[%emt 0:00:30]} Ke6 {[%emt 0:00:00]} 49. Bxc6 {[%emt 0:00:11]} Rxc6 {[%emt 0:00:00]} 50. g4 {[%emt 0:00:34]} Kd5 {[%emt 0:01:52]} 51. Kf2 {[%emt 0:00:59]} Rc3 {[%emt 0:03:43]} 52. Ra4 {[%emt 0:00:27]} Rc6 {[%emt 0:01:03]} 53. Kg3 {[%emt 0:00:37]} Ke6 {[%emt 0:00:09]} 54. Re4 {[%emt 0:00:08]} Rd6 {[%emt 0:00:37]} 55. Ra4 {[%emt 0:01:23]} Rb6 {[%emt 0:02:32]} 56. Re4 {[%emt 0:00:25]} Rc6 {[%emt 0:00:05]} 57. Ra4 {[%emt 0:00:30]} Rd6 {[%emt 0:00:00]} 58. Rb4 {[%emt 0:00:28]} Rd4 {[%emt 0:00:34]} 59. Rb6+ {[%emt 0:00:30]} Kf7 {[%emt 0:00:00]} 60. Rb7+ {[%emt 0:00:00]} Kg6 {[%emt 0:00:28]} 61. Re7 {[%emt 0:00:00]} Rd2 {[%emt 0:00:43]} 62. Kh3 {[%emt 0:00:03]} Rd8 {[%emt 0:02:29]} 63. Kg3 {[%emt 0:00:34]} Rh8 {[%emt 0:00:13]} 64. Ra7 {[%emt 0:00:13]} Re8 {[%emt 0:00:04]} 65. Ra4 {[%emt 0:00:31]} Kf7 {[%emt 0:00:03]} 66. Ra7+ {[%emt 0:00:00]} Re7 {[%emt 0:01:14]} 67. Ra4 {[%emt 0:00:15]} Rd7 {[%emt 0:00:00]} 68. Ra1 {[%emt 0:00:36]} Ke6 {[%emt 0:00:00]} 69. Ra6+ {[%emt 0:00:00]} Rd6 {[%emt 0:00:09]} 70. Ra4 {[%emt 0:00:17]} Rc6 {[%emt 0:00:00]} 71. Rb4 {[%emt 0:00:18]} Kd5 {[%emt 0:00:00]} 72. Ra4 {[%emt 0:01:07]} Kc5 {[%emt 0:00:14]} 73. Re4 {[%emt 0:00:32]} Kb5 {[%emt 0:01:09]} 74. Re1 {[%emt 0:00:48]} Rc3 {[%emt 0:00:05]} 75. Re4 {[%emt 0:00:03]} Rd3 {[%emt 0:00:16]} 76. Kf2 {[%emt 0:00:25]} Rd4 {[%emt 0:00:21]} 77. Re1 {[%emt 0:00:16]} Kc4 {[%emt 0:00:24]} 78. Ra1 {[%emt 0:02:12]} Rd2+ {[%emt 0:04:13]} 79. Ke3 {[%emt 0:00:29]} Rd4 {[%emt 0:00:14]} 80. Kf2 {[%emt 0:01:29]} Rf4 {[%emt 0:01:25]} 81. Kg3 {[%emt 0:00:07]} Kb5 {[%emt 0:00:20]} 82. Rc1 {[%emt 0:00:43]} 1/2-1/2

[Event "Turkish Championship 2023"]
[Site "Kemer Antalya"]
[Date "2023.12.10"]
[Round "9"]
[White "Isik, Alparslan"]
[Black "Taspinar, Yanki"]
[Result "1/2-1/2"]
[ECO "A08"]
[WhiteElo "2452"]
[BlackElo "2318"]
[Annotator "RC"]
[PlyCount "158"]
[EventDate "2023.12.01"]
[EventType "tourn"]
[EventCountry "TUR"]
[SourceTitle "playchess.com"]
[Source "ChessBase"]
[SourceQuality "1"]
[TimeControl "40/5400+30:1800+30"]

1. Nf3 {[%emt 0:01:00]} Nf6 {[%emt 0:05:00]} 2. g3 {[%emt 0:00:30]} d5 {[%emt 0:00:30]} 3. Bg2 {[%emt 0:00:30]} c5 {[%emt 0:00:00]} 4. O-O {[%emt 0:00:00]} g6 {[%emt 0:00:00]} 5. d4 {[%emt 0:04:00]} cxd4 {[%emt 0:00:30]} 6. Nxd4 {[%emt 0:00:00]} e5 {[%emt 0:00:30]} 7. Nb3 {[%emt 0:00:00]} Nc6 {[%emt 0:16:30]} 8. Bg5 {[%emt 0:02:30]} d4 {[%emt 0:06:30]} 9. e3 {[%emt 0:20:30]} h6 {[%emt 0:01:30]} 10. Bxf6 {[%emt 0:00:30]} Qxf6 {[%emt 0:00:30]} 11. exd4 {[%emt 0:00:00]} Nxd4 {[%emt 0:07:30]} 12. Nxd4 {[%emt 0:15:00]} exd4 {[%emt 0:00:00]} 13. Re1+ {[%emt 0:01:30]} Be7 {[%emt 0:01:00]} 14. c3 {[%emt 0:00:30]} O-O {[%emt 0:18:30]} 15. cxd4 {[%emt 0:00:00]} Be6 {[%emt 0:02:30]} 16. Nc3 {[%emt 0:02:00]} Rad8 {[%emt 0:04:30]} 17. d5 {[%emt 0:01:30]} Bf5 {[%emt 0:04:30]} 18. Qe2 {[%emt 0:02:30]} Bc5 {[%emt 0:29:30]} 19. Rad1 {[%emt 0:09:30]} h5 {[%emt 0:00:30]} 20. h3 {[%emt 0:00:30]} Qg5 {[%emt 0:00:30]} 21. Qf3 {[%emt 0:00:30]} a6 {[%emt 0:00:00]} 22. d6 {[%emt 0:08:30]} b6 {[%emt 0:00:00]} 23. Nd5 Rxd6 {[%emt 0:00:00]} 24. b4 {[%emt 0:12:46]} Rxd5 {[%emt 0:00:16]} 25. Qxd5 {[%emt 0:03:45]} Bxb4 {[%emt 0:00:02]} 26. Re2 {[%emt 0:00:18]} Bc5 {[%emt 0:01:13]} 27. Qe5 {[%emt 0:03:00]} Qh6 {[%emt 0:01:07]} 28. Kh2 {[%emt 0:03:35]} Qg7 {[%emt 0:00:19]} 29. Qf4 {[%emt 0:00:17]} Kh7 {[%emt 0:00:58]} 30. Bf3 {[%emt 0:00:44]} Be6 {[%emt 0:00:28]} 31. Kg2 {[%emt 0:00:38]} Kg8 {[%emt 0:00:33]} 32. Bd5 {[%emt 0:00:26]} Bc8 {[%emt 0:00:32]} 33. Qc7 {[%emt 0:02:10]} Qf6 {[%emt 0:00:29]} 34. Bb7 {[%emt 0:02:44]} Bf5 {[%emt 0:00:21]} 35. Qf4 {[%emt 0:00:47]} a5 {[%emt 0:00:27]} 36. g4 {[%emt 0:01:39]} Qh4 {[%emt 0:00:42]} 37. f3 {[%emt 0:02:53]} Be6 {[%emt 0:00:27]} 38. Bd5 {[%emt 0:00:25]} Bxd5 {[%emt 0:00:34]} 39. Rxd5 {[%emt 0:00:06]} hxg4 {[%emt 0:00:30]} 40. hxg4 {[%emt 0:00:00]} Kg7 {[%emt 0:00:00]} 41. Rd7 {[%emt 0:04:17]} Qf6 {[%emt 0:08:32]} 42. Qxf6+ {[%emt 0:01:30]} Kxf6 {[%emt 0:00:30]} 43. Re4 {[%emt 0:00:00]} g5 {[%emt 0:00:30]} 44. Rd5 {[%emt 0:03:00]} Kg6 {[%emt 0:01:30]} 45. Ree5 {[%emt 0:09:37]} f6 {[%emt 0:00:30]} 46. Re6 {[%emt 0:00:06]} Rc8 {[%emt 0:17:54]} 47. Rd7 {[%emt 0:03:27]} a4 {[%emt 0:00:27]} 48. Kf1 {[%emt 0:03:35]} Rh8 {[%emt 0:02:28]} 49. Rc6 {[%emt 0:00:39]} Rh1+ {[%emt 0:00:58]} 50. Kg2 {[%emt 0:00:48]} Rg1+ {[%emt 0:00:04]} 51. Kh2 {[%emt 0:00:24]} Rc1 {[%emt 0:00:05]} 52. Re6 {[%emt 0:01:05]} Rc2+ {[%emt 0:01:06]} 53. Kh3 {[%emt 0:00:27]} Rxa2 {[%emt 0:02:49]} 54. Re8 {[%emt 0:00:01]} Rf2 {[%emt 0:00:06]} 55. Kg3 {[%emt 0:00:09]} Rc2 {[%emt 0:00:20]} 56. Rg8+ {[%emt 0:00:33]} Kh6 {[%emt 0:00:01]} 57. Kh3 {[%emt 0:01:08]} Rf2 {[%emt 0:00:54]} 58. Rh8+ {[%emt 0:08:31]} Kg6 {[%emt 0:00:01]} 59. Rg8+ {[%emt 0:00:55]} Kh6 {[%emt 0:00:01]} 60. Kg3 {[%emt 0:00:25]} Re2 {[%emt 0:00:05]} 61. Rc8 {[%emt 0:02:05]} Re7 {[%emt 0:01:33]} 62. Rd2 {[%emt 0:00:23]} Kg7 {[%emt 0:00:58]} 63. Rdd8 {[%emt 0:00:40]} a3 {[%emt 0:00:17]} 64. Ra8 {[%emt 0:00:09]} Kf7 {[%emt 0:00:19]} 65. Rd2 {[%emt 0:00:27]} Bb4 {[%emt 0:00:41]} 66. Rd3 {[%emt 0:00:23]} Be1+ {[%emt 0:01:04]} 67. Kg2 {[%emt 0:00:30]} Bb4 {[%emt 0:00:00]} 68. Rb3 {[%emt 0:00:55]} Re2+ {[%emt 0:00:09]} 69. Kf1 {[%emt 0:00:05]} Rb2 {[%emt 0:00:37]} 70. Re3 {[%emt 0:00:48]} a2 {[%emt 0:01:05]} 71. Ra7+ {[%emt 0:00:04]} Kf8 {[%emt 0:00:19]} 72. Ra8+ {[%emt 0:00:33]} Kf7 {[%emt 0:00:09]} 73. Ra7+ {[%emt 0:00:00]} Kf8 {[%emt 0:01:11]} 74. Ra8+ {[%emt 0:00:00]} Kg7 {[%emt 0:00:04]} 75. Ra7+ {[%emt 0:00:00]} Kg6 {[%emt 0:00:40]} 76. Re8 {[%emt 0:00:00]} Rb1+ {[%emt 0:00:58]} 77. Kg2 {[%emt 0:00:00]} a1=Q {[%emt 0:00:27]} 78. Rg8+ {[%emt 0:00:16]} Kh6 {[%emt 0:00:30]} 79. Rh8+ {[%emt 0:00:00]} Kg6 {[%emt 0:00:00]} 1/2-1/2

[Event "Turkish Championship 2023"]
[Site "Kemer Antalya"]
[Date "2023.12.10"]
[Round "9"]
[White "Tarhan, Adar"]
[Black "Tirpan, Ceren"]
[Result "1-0"]
[ECO "B38"]
[WhiteElo "2434"]
[BlackElo "1940"]
[Annotator "RC"]
[PlyCount "93"]
[EventDate "2023.12.01"]
[EventType "tourn"]
[EventCountry "TUR"]
[SourceTitle "playchess.com"]
[Source "ChessBase"]
[SourceQuality "1"]
[TimeControl "40/5400+30:1800+30"]

1. e4 {[%emt 0:01:00]} c5 {[%emt 0:01:00]} 2. Nf3 {[%emt 0:00:30]} Nc6 {[%emt 0:00:30]} 3. d4 {[%emt 0:00:30]} cxd4 {[%emt 0:00:30]} 4. Nxd4 {[%emt 0:00:30]} g6 {[%emt 0:00:30]} 5. c4 {[%emt 0:00:30]} Bg7 {[%emt 0:00:30]} 6. Be3 {[%emt 0:00:00]} Nf6 {[%emt 0:00:00]} 7. Nc3 {[%emt 0:00:00]} d6 {[%emt 0:00:00]} 8. Be2 {[%emt 0:00:00]} Bd7 {[%emt 0:00:00]} 9. O-O {[%emt 0:00:00]} O-O {[%emt 0:00:00]} 10. Qd2 {[%emt 0:00:00]} Nxd4 {[%emt 0:03:30]} 11. Bxd4 {[%emt 0:00:00]} Bc6 {[%emt 0:00:30]} 12. f3 {[%emt 0:01:30]} Ne8 {[%emt 0:02:30]} 13. Bf2 {[%emt 0:02:30]} Qa5 {[%emt 0:07:30]} 14. Rab1 {[%emt 0:05:30]} Bxc3 {[%emt 0:18:30]} 15. bxc3 {[%emt 0:00:30]} Ng7 {[%emt 0:00:30]} 16. Rbe1 {[%emt 0:05:30]} Rae8 {[%emt 0:04:30]} 17. Bd3 {[%emt 0:01:30]} b6 {[%emt 0:09:30]} 18. f4 {[%emt 0:01:30]} Qh5 {[%emt 0:06:30]} 19. f5 {[%emt 0:02:30]} gxf5 {[%emt 0:11:30]} 20. exf5 {[%emt 0:00:00]} Nxf5 {[%emt 0:02:30]} 21. Bxf5 {[%emt 0:08:00]} Qxf5 {[%emt 0:00:30]} 22. Bd4 {[%emt 0:00:00]} Qh5 {[%emt 0:03:30]} 23. Re3 {[%emt 0:04:00]} e5 {[%emt 0:02:30]} 24. Rh3 {[%emt 0:00:30]} Qg6 {[%emt 0:00:30]} 25. Rg3 {[%emt 0:00:30]} exd4 {[%emt 0:00:30]} 26. cxd4 {[%emt 0:00:30]} Re4 {[%emt 0:01:30]} 27. Rxg6+ {[%emt 0:01:30]} hxg6 {[%emt 0:00:00]} 28. d5 {[%emt 0:00:30]} Bd7 {[%emt 0:00:00]} 29. Qb4 {[%emt 0:01:30]} Rfe8 {[%emt 0:01:30]} 30. Qxd6 {[%emt 0:00:30]} Bf5 {[%emt 0:00:30]} 31. c5 {[%emt 0:00:30]} bxc5 {[%emt 0:00:30]} 32. Qxc5 {[%emt 0:00:30]} Re2 {[%emt 0:00:30]} 33. Qb5 {[%emt 0:02:30]} a6 {[%emt 0:01:30]} 34. Qa5 {[%emt 0:01:30]} Rb8 {[%emt 0:04:53]} 35. d6 {[%emt 0:03:30]} Rb5 {[%emt 0:06:42]} 36. Qxa6 {[%emt 0:02:30]} Rbb2 {[%emt 0:03:05]} 37. Qc6 {[%emt 0:01:30]} Rbc2 {[%emt 0:02:12]} 38. Qf3 {[%emt 0:02:30]} Rxa2 {[%emt 0:05:33]} 39. Rd1 {[%emt 0:02:30]} Re8 {[%emt 0:00:30]} 40. h4 {[%emt 0:00:00]} Ra7 {[%emt 0:00:00]} 41. Rd4 {[%emt 0:03:00]} Re1+ {[%emt 0:07:05]} 42. Kh2 {[%emt 0:00:00]} Rea1 {[%emt 0:01:30]} 43. h5 {[%emt 0:01:00]} R7a3 {[%emt 0:01:30]} 44. Qf4 {[%emt 0:01:30]} Ra7 {[%emt 0:04:30]} 45. Qe5 {[%emt 0:00:30]} R1a5 {[%emt 0:01:30]} 46. Qe8+ {[%emt 0:00:30]} Kg7 {[%emt 0:00:30]} 47. h6+ {[%emt 0:00:00]} 1-0